fUST/lending_fUST_20260115
["ID","MTS","AMOUNT","RATE_DAILY","PERIOD"]
[402022497,1768479038244,-137.24975282,0.00012801,2]
[402022498,1768479038253,-290.39862941,0.00012801,2]
[402022499,1768479038263,-301.1433787,0.00012801,2]
[402022500,1768479038272,-619.19050733,0.00012808,2]
[402022501,1768479038282,-251.70730221,0.00012808,2]
[402022502,1768479038291,-305.28420225,0.00012808,2]
[402022503,1768479038299,-1037.22189618,0.00012809,2]
[402022504,1768479038318,-4237.11762725,0.00012809,2]
[402022506,1768479039936,-2881.50761692,0.00012809,2]
[402022507,1768479039947,-14476.11322515,0.00012809,2]
[402022508,1768479039990,-4731.63076753,0.00012809,2]
[402022509,1768479040002,-81588.80726956,0.00012809,2]
[402022510,1768479040014,-1000.0,0.00012809,2]
[402022511,1768479040025,-447.0,0.00012809,2]
[402022512,1768479040047,-4297.70044663,0.00012809,2]
[402022552,1768479042943,-543.13181386,0.00012809,2]
[402022553,1768479043051,-911.75,0.00012809,2]
[402022580,1768479045743,-1914.19028741,0.000126,2]
[402022581,1768479045752,-3329.59971259,0.00012809,2]
[402022599,1768480048073,400.39217963,0.00027397,120]
[402022601,1768480077346,400.0,0.00027397,120]
[402022604,1768480162806,182.13825742,0.00023003,120]
[402022633,1768480231801,-5000.0,0.0001039,8]
[402022634,1768480231811,-174.50918867,0.00010602,2]
[402022636,1768480231822,-3000.0,0.00011035,2]
[402022637,1768480231831,-300.0,0.0001111,2]
[402022638,1768480231840,-6047.0,0.00011111,2]
[402022639,1768480231849,-3000.0,0.00012405,2]
[402022640,1768480231859,-184.646,0.00012455,2]
[402022641,1768480231868,-205.92084263,0.00012602,2]
[402022642,1768480231877,-500.0,0.00012699,2]
[402022643,1768480231887,-151.0,0.000127,2]
[402022644,1768480231897,-155.6219387,0.000127,2]
[402022645,1768480231906,-377.6837282,0.000127,2]
[402022646,1768480231915,-302.5275431,0.000127,2]
[402022647,1768480231924,-392.8327951,0.000127,2]
[402022648,1768480231933,-1243.3112396,0.000127,2]
[402022649,1768480231942,-155.8815505,0.000127,2]
[402022650,1768480231952,-153.0,0.000127,2]
[402022651,1768480231961,-165.23732696,0.000127,2]
[402022652,1768480231970,-445.202766,0.00012701,2]
[402022653,1768480231979,-162.380719,0.00012701,2]
[402022654,1768480231988,-168.3888056,0.00012701,2]
[402022655,1768480231998,-174.61919141,0.00012701,2]
[402022656,1768480232007,-181.08010149,0.00012701,2]
[402022657,1768480232016,-187.78006525,0.00012701,2]
[402022658,1768480232025,-194.72792766,0.00012701,2]
[402022659,1768480232034,-201.93286099,0.00012701,2]
[402022660,1768480232043,-209.40437684,0.00012701,2]
[402022661,1768480232052,-217.15233878,0.00012701,2]
[402022662,1768480232065,-225.18697532,0.00012701,2]
[402022663,1768480232075,-233.51889341,0.00012701,2]
[402022664,1768480232084,-242.15909246,0.00012701,2]
[402022665,1768480232092,-251.11897888,0.00012701,2]
[402022666,1768480232102,-260.4103811,0.00012701,2]
[402022667,1768480232111,-318.39830245,0.00012701,2]
[402022668,1768480232120,-176.19511154,0.00012708,2]
[402022669,1768480232129,-145999.78574092,0.00012709,2]
[402022670,1768480232154,-1371.92452659,0.00012709,2]
[402023071,1768480358062,155.0,5e-05,2]
[402023079,1768480529227,284.0,0.00024403,120]
[402023080,1768480560150,500.0,0.0002739,120]
[402023081,1768480561396,352.74305668,0.0002739,120]
[402023087,1768480757089,2019.85,0.00027397,120]
[402023088,1768480862462,389.11557138,0.00027397,120]
[402023089,1768480872580,-5000.0,0.00010761,8]
[402023090,1768480872603,-172.7916545,0.0001087,2]
[402023091,1768480872625,-574.0,0.0001098,2]
[402023092,1768480872647,-1200.0,0.00011034,2]
[402023093,1768480872669,-3000.0,0.00011035,2]
[402023094,1768480872691,-300.0,0.00011643,2]
[402023095,1768480872712,-300.0,0.00011644,2]
[402023096,1768480872734,-300.0,0.00011644,2]
[402023097,1768480872755,-1563.4510114,0.00011646,2]
[402023098,1768480872777,-3000.0,0.00012405,2]
[402023099,1768480872799,-184.647,0.00012455,2]
[402023100,1768480872821,-165.23732692,0.00012501,2]
[402023101,1768480872844,-445.202766,0.00012594,2]
[402023102,1768480872866,-1957.856,0.00012594,2]
[402023103,1768480872892,-181836.81424118,0.00012601,2]
[402023211,1768481060367,2700.0,0.00027397,120]
[402023214,1768481336929,160.0,0.00027397,120]
[402023215,1768481354363,160.0,0.00027397,120]
[402023216,1768481366632,160.0,0.00027397,120]
[402023217,1768481384020,160.0,0.00027397,120]
[402023218,1768481408442,180.0,0.00027397,120]
[402023219,1768481430777,186.0,0.00027397,120]
[402023221,1768481432557,-4624.983028,0.00010609,8]
[402023328,1768481438078,-375.016972,0.00010609,8]
[402023329,1768481438088,-195.9802966,0.00010716,2]
[402023330,1768481438098,-207.65796461,0.0001077,2]
[402023331,1768481438108,-1200.0,0.00010824,2]
[402023332,1768481438118,-3009.2245088,0.00010825,2]
[402023333,1768481438127,-300.0,0.00011032,2]
[402023334,1768481438137,-279.0,0.00011032,2]
[402023335,1768481438146,-300.0,0.00011032,2]
[402023336,1768481438156,-300.0,0.00011033,2]
[402023337,1768481438165,-3000.0,0.00011035,2]
[402023338,1768481438175,-500.0,0.00011905,2]
[402023339,1768481438184,-1680.0,0.00011906,2]
[402023340,1768481438194,-39338.4904381,0.00011906,2]
[402023341,1768481438220,-3648.67252176,0.00011906,2]
[402023420,1768481440920,-4562.45270198,0.00011906,2]
[402023423,1768481440938,-2450.38433816,0.00011906,2]
[402023425,1768481440947,-420.0,0.00012123,2]
[402023427,1768481440957,-377.4807784,0.000122,2]
[402023429,1768481440966,-153.0,0.000122,2]
[402023431,1768481440974,-377.6837282,0.000122,2]
[402023433,1768481440983,-153.0,0.000122,2]
[402023434,1768481440992,-377.6837282,0.00012241,2]
[402023436,1768481441002,-7963.8946622,0.00012301,2]
[402023438,1768481441010,-1460.32,0.00012329,2]
[402023440,1768481441019,-1216.94,0.00012329,2]
[402023442,1768481441028,-1014.11,0.00012329,2]
[402023444,1768481441037,-845.09,0.00012329,2]
[402023446,1768481441047,-704.25,0.00012329,2]
[402023448,1768481441056,-586.87,0.00012329,2]
[402023450,1768481441065,-489.06,0.00012329,2]
[402023452,1768481441074,-407.55,0.00012329,2]
[402023454,1768481441082,-339.62,0.00012329,2]
[402023456,1768481441091,-283.02,0.00012329,2]
[402023458,1768481441100,-235.85,0.00012329,2]
[402023459,1768481441109,-196.54,0.00012329,2]
[402023461,1768481441118,-163.79,0.00012329,2]
[402023463,1768481441127,-818.95,0.00012329,2]
[402023465,1768481441136,-184.647,0.00012349,2]
[402023467,1768481441145,-153.0,0.00012378,2]
[402023469,1768481441154,-359.48093592,0.000124,2]
[402023471,1768481441163,-3000.0,0.00012405,2]
[402023473,1768481441172,-165.23732692,0.00012553,2]
[402023475,1768481441181,-445.202766,0.00012594,2]
[402023477,1768481441191,-151.0,0.000126,2]
[402023479,1768481441200,-241.95586083,0.000126,2]
[402023481,1768481441209,-500.0,0.000126,2]
[402023483,1768481441219,-500.0,0.000126,2]
[402023485,1768481441227,-500.0,0.000126,2]
[402023487,1768481441236,-405.81670383,0.000126,2]
[402023489,1768481441245,-500.0,0.000126,2]
[402023490,1768481441254,-500.0,0.000126,2]
[402023492,1768481441263,-392.87217134,0.000126,2]
[402023746,1768481581057,911.0,0.00027397,120]
[402023747,1768481677350,973.22,0.00027397,120]
[402023748,1768481688549,2009.86,0.00027397,120]
[402023749,1768481833568,1145.4069738,0.00027397,120]
[402023753,1768482072024,200.0,0.00027,120]
[402023780,1768482632133,-1054.42585719,0.0001022,8]
[402023782,1768482632144,-3945.57414281,0.0001022,8]
[402023784,1768482632154,-224.31957159,0.00010375,2]
[402023786,1768482632163,-902.4595776,0.00010428,2]
[402023788,1768482632172,-1200.0,0.00010974,2]
[402023790,1768482632181,-780.63145204,0.00010975,2]
[402023792,1768482632190,-3119.40328236,0.00010975,2]
[402023794,1768482632199,-3000.0,0.00011035,2]
[402023796,1768482632208,-919.68650355,0.00011614,2]
[402024042,1768482638278,-3115.57181475,0.00011614,2]
[402024043,1768482638287,-500.0,0.00011801,2]
[402024044,1768482638296,-500.0,0.00011801,2]
[402024045,1768482638305,-500.0,0.00011801,2]
[402024046,1768482638314,-500.0,0.00011801,2]
[402024047,1768482638324,-500.0,0.00011801,2]
[402024048,1768482638333,-500.0,0.00011801,2]
[402024049,1768482638342,-200.0,0.00011801,2]
[402024050,1768482638351,-500.0,0.00011801,2]
[402024051,1768482638360,-500.0,0.00011801,2]
[402024052,1768482638369,-500.0,0.00011801,2]
[402024053,1768482638378,-500.0,0.00011801,2]
[402024054,1768482638388,-500.0,0.00011801,2]
[402024055,1768482638397,-210.66751218,0.00011801,2]
[402024056,1768482638407,-500.0,0.00011801,2]
[402024057,1768482638416,-500.0,0.00011801,2]
[402024058,1768482638425,-500.0,0.00011801,2]
[402024059,1768482638435,-500.0,0.00011801,2]
[402024060,1768482638444,-500.0,0.00011801,2]
[402024061,1768482638454,-500.0,0.00011801,2]
[402024062,1768482638463,-500.0,0.00011801,2]
[402024063,1768482638472,-500.0,0.00011801,2]
[402024064,1768482638481,-500.0,0.00011801,2]
[402024065,1768482638491,-500.0,0.00011801,2]
[402024066,1768482638500,-500.0,0.00011801,2]
[402024067,1768482638510,-500.0,0.00011801,2]
[402024068,1768482638519,-500.0,0.00011801,2]
[402024069,1768482638529,-500.0,0.00011801,2]
[402024070,1768482638539,-500.0,0.00011801,2]
[402024071,1768482638548,-200.0,0.00011801,2]
[402024072,1768482638557,-500.0,0.00011801,2]
[402024073,1768482638567,-250.0,0.00011801,2]
[402024074,1768482638576,-500.0,0.00011801,2]
[402024075,1768482638585,-500.0,0.00011801,2]
[402024076,1768482638594,-500.0,0.00011801,2]
[402024077,1768482638603,-500.0,0.00011801,2]
[402024078,1768482638612,-500.0,0.00011801,2]
[402024079,1768482638622,-500.0,0.00011801,2]
[402024080,1768482638631,-500.0,0.00011801,2]
[402024081,1768482638640,-500.0,0.00011801,2]
[402024082,1768482638650,-500.0,0.00011801,2]
[402024083,1768482638660,-500.0,0.00011801,2]
[402024084,1768482638670,-500.0,0.00011801,2]
[402024085,1768482638679,-500.0,0.00011801,2]
[402024086,1768482638689,-500.0,0.00011801,2]
[402024087,1768482638698,-500.0,0.00011801,2]
[402024088,1768482638708,-500.0,0.00011801,2]
[402024089,1768482638718,-500.0,0.00011801,2]
[402024090,1768482638727,-500.0,0.00011801,2]
[402024091,1768482638737,-500.0,0.00011801,2]
[402024092,1768482638747,-500.0,0.00011801,2]
[402024093,1768482638757,-500.0,0.00011801,2]
[402024094,1768482638768,-500.0,0.00011801,2]
[402024095,1768482638778,-500.0,0.00011801,2]
[402024096,1768482638788,-500.0,0.00011801,2]
[402024097,1768482638797,-500.0,0.00011801,2]
[402024098,1768482638807,-500.0,0.00011801,2]
[402024099,1768482638817,-500.0,0.00011801,2]
[402024100,1768482638827,-500.0,0.00011801,2]
[402024101,1768482638837,-500.0,0.00011801,2]
[402024102,1768482638846,-500.0,0.00011801,2]
[402024103,1768482638855,-500.0,0.00011801,2]
[402024104,1768482638865,-285.0,0.00011801,2]
[402024105,1768482638874,-500.0,0.00011801,2]
[402024106,1768482638883,-500.0,0.00011801,2]
[402024107,1768482638892,-500.0,0.00011801,2]
[402024108,1768482638902,-500.0,0.00011801,2]
[402024109,1768482638911,-500.0,0.00011801,2]
[402024110,1768482638920,-500.0,0.00011801,2]
[402024111,1768482638929,-500.0,0.00011801,2]
[402024112,1768482638938,-500.0,0.00011801,2]
[402024113,1768482638948,-500.0,0.00011801,2]
[402024114,1768482638958,-500.0,0.00011801,2]
[402024115,1768482638968,-500.0,0.00011801,2]
[402024116,1768482638977,-500.0,0.00011801,2]
[402024117,1768482638987,-500.0,0.00011801,2]
[402024118,1768482638996,-500.0,0.00011801,2]
[402024119,1768482639006,-500.0,0.00011801,2]
[402024120,1768482639016,-500.0,0.00011801,2]
[402024121,1768482639025,-228.21296536,0.00011801,2]
[402024122,1768482639035,-500.0,0.00011801,2]
[402024123,1768482639044,-500.0,0.00011801,2]
[402024124,1768482639054,-500.0,0.00011801,2]
[402024125,1768482639065,-500.0,0.00011801,2]
[402024126,1768482639074,-500.0,0.00011801,2]
[402024127,1768482639084,-500.0,0.00011801,2]
[402024128,1768482639093,-500.0,0.00011801,2]
[402024129,1768482639103,-500.0,0.00011801,2]
[402024130,1768482639112,-500.0,0.00011801,2]
[402024131,1768482639122,-500.0,0.00011801,2]
[402024132,1768482639131,-500.0,0.00011801,2]
[402024133,1768482639141,-500.0,0.00011801,2]
[402024134,1768482639150,-500.0,0.00011801,2]
[402024135,1768482639160,-500.0,0.00011801,2]
[402024136,1768482639169,-500.0,0.00011801,2]
[402024137,1768482639179,-500.0,0.00011801,2]
[402024138,1768482639188,-500.0,0.00011801,2]
[402024139,1768482639197,-500.0,0.00011801,2]
[402024140,1768482639207,-500.0,0.00011801,2]
[402024141,1768482639216,-500.0,0.00011801,2]
[402024142,1768482639225,-500.0,0.00011801,2]
[402024143,1768482639235,-500.0,0.00011801,2]
[402024144,1768482639244,-500.0,0.00011801,2]
[402024145,1768482639254,-500.0,0.00011801,2]
[402024146,1768482639264,-500.0,0.00011801,2]
[402024147,1768482639273,-500.0,0.00011801,2]
[402024148,1768482639282,-500.0,0.00011801,2]
[402024149,1768482639291,-500.0,0.00011801,2]
[402024150,1768482639301,-500.0,0.00011801,2]
[402024151,1768482639310,-500.0,0.00011801,2]
[402024152,1768482639320,-500.0,0.00011801,2]
[402024153,1768482639329,-500.0,0.00011801,2]
[402024154,1768482639339,-500.0,0.00011801,2]
[402024155,1768482639349,-500.0,0.00011801,2]
[402024156,1768482639359,-500.0,0.00011801,2]
[402024157,1768482639369,-500.0,0.00011801,2]
[402024158,1768482639379,-500.0,0.00011801,2]
[402024159,1768482639389,-500.0,0.00011801,2]
[402024160,1768482639399,-500.0,0.00011801,2]
[402024161,1768482639409,-500.0,0.00011801,2]
[402024162,1768482639418,-212.10483503,0.00011801,2]
[402024163,1768482639428,-500.0,0.00011801,2]
[402024164,1768482639437,-500.0,0.00011801,2]
[402024165,1768482639447,-500.0,0.00011801,2]
[402024166,1768482639456,-500.0,0.00011801,2]
[402024167,1768482639465,-500.0,0.00011801,2]
[402024168,1768482639475,-500.0,0.00011801,2]
[402024169,1768482639484,-500.0,0.00011801,2]
[402024170,1768482639493,-500.0,0.00011801,2]
[402024171,1768482639503,-500.0,0.00011801,2]
[402024172,1768482639511,-500.0,0.00011801,2]
[402024173,1768482639522,-500.0,0.00011801,2]
[402024174,1768482639532,-500.0,0.00011801,2]
[402024175,1768482639541,-500.0,0.00011801,2]
[402024176,1768482639550,-584.64363849,0.00011801,2]
[402024177,1768482639559,-500.0,0.00011801,2]
[402024178,1768482639569,-500.0,0.00011801,2]
[402024179,1768482639578,-500.0,0.00011801,2]
[402024180,1768482639587,-500.0,0.00011801,2]
[402024181,1768482639596,-500.0,0.00011801,2]
[402024182,1768482639605,-500.0,0.00011801,2]
[402024183,1768482639614,-500.0,0.00011801,2]
[402024184,1768482639624,-500.0,0.00011801,2]
[402024185,1768482639633,-500.0,0.00011801,2]
[402024186,1768482639642,-500.0,0.00011801,2]
[402024187,1768482639652,-500.0,0.00011801,2]
[402024188,1768482639661,-500.0,0.00011801,2]
[402024189,1768482639670,-500.0,0.00011801,2]
[402024190,1768482639679,-500.0,0.00011801,2]
[402024191,1768482639858,-500.0,0.00011801,2]
[402024192,1768482639869,-500.0,0.00011801,2]
[402024193,1768482639879,-500.0,0.00011801,2]
[402024194,1768482639888,-500.0,0.00011801,2]
[402024195,1768482639899,-500.0,0.00011801,2]
[402024196,1768482639909,-500.0,0.00011801,2]
[402024197,1768482639919,-500.0,0.00011801,2]
[402024198,1768482639930,-500.0,0.00011801,2]
[402024199,1768482639941,-500.0,0.00011801,2]
[402024200,1768482639951,-500.0,0.00011801,2]
[402024201,1768482639960,-500.0,0.00011801,2]
[402024202,1768482639971,-500.0,0.00011801,2]
[402024203,1768482639980,-500.0,0.00011801,2]
[402024204,1768482639990,-500.0,0.00011801,2]
[402024205,1768482639999,-500.0,0.00011801,2]
[402024206,1768482640009,-500.0,0.00011801,2]
[402024207,1768482640019,-500.0,0.00011801,2]
[402024208,1768482640028,-500.0,0.00011801,2]
[402024209,1768482640038,-500.0,0.00011801,2]
[402024210,1768482640047,-500.0,0.00011801,2]
[402024211,1768482640056,-500.0,0.00011801,2]
[402024212,1768482640066,-500.0,0.00011801,2]
[402024213,1768482640076,-291.52352409,0.00011801,2]
[402024214,1768482640085,-166786.74815152,0.00011802,2]
[402024215,1768482640103,-476.32654036,0.00011802,2]
[402024220,1768482640681,-19381.44385813,0.00011802,2]
[402024237,1768482643443,-1000.0,0.00011802,2]
[402024249,1768482791858,353.09925363,0.00025109,120]
[402024250,1768482797313,470.79900484,0.00025109,120]
[402024251,1768482802647,353.09925363,0.00025109,120]
[402024252,1768482858821,667.76681229,0.00025134,120]
[402024253,1768482866865,890.35574972,0.00025134,120]
[402024254,1768482874466,763.16207119,0.00025134,120]
[402024256,1768482916888,168.0,0.00024347,120]
[402024257,1768482918443,168.0,0.00025564,120]
[402024258,1768482920348,168.0,0.00026842,120]
[402024259,1768482934066,161.0,0.00023118,120]
[402024260,1768482935361,161.0,0.00024274,120]
[402024261,1768482937073,161.0,0.00025488,120]
[402024262,1768482938575,161.0,0.00026762,120]
[402024263,1768482995846,156.20093705,0.00027397,120]
[402024266,1768483212622,169.0,0.00024437,120]
[402024267,1768483214299,169.0,0.00025659,120]
[402024268,1768483215853,169.0,0.00026942,120]
[402024269,1768483229753,161.0,0.00025768,120]
[402024270,1768483230979,161.0,0.00027056,120]
[402024279,1768483603557,1000.0,0.0001,8]
[402024280,1768483611662,1000.0,0.0001,9]
[402024288,1768483832277,-543.0,9.854e-05,2]
[402024290,1768483832343,-874.63818407,9.854e-05,2]
[402024292,1768483832354,-524.86494536,9.854e-05,2]
[402024318,1768483838381,-2057.49687057,9.854e-05,2]
[402024320,1768483838391,-5000.0,9.954e-05,2]
[402024322,1768483838402,-219.83318015,0.0001,2]
[402024325,1768483838412,-26.42522009,0.00010055,2]
[402024334,1768483838493,-271.78892873,0.00010055,2]
[402024336,1768483838503,-1704.98331873,0.00011035,2]
[402024424,1768483844047,-1295.01668127,0.00011035,2]
[402024425,1768483844056,-762.5202788,0.00011454,2]
[402024426,1768483844067,-184.647,0.00011566,2]
[402024427,1768483844076,-500.0,0.00011697,2]
[402024428,1768483844086,-500.0,0.00011697,2]
[402024429,1768483844095,-500.0,0.00011697,2]
[402024430,1768483844105,-500.0,0.00011697,2]
[402024431,1768483844115,-500.0,0.00011697,2]
[402024432,1768483844128,-500.0,0.00011697,2]
[402024433,1768483844138,-500.0,0.00011697,2]
[402024434,1768483844147,-500.0,0.00011697,2]
[402024435,1768483844158,-500.0,0.00011697,2]
[402024436,1768483844168,-269.8014406,0.00011697,2]
[402024438,1768483844177,-478.46436385,0.00011697,2]
[402024440,1768483844186,-500.0,0.00011697,2]
[402024442,1768483844197,-500.0,0.00011697,2]
[402024444,1768483844206,-596.2104835,0.00011697,2]
[402024446,1768483844215,-500.0,0.00011697,2]
[402024448,1768483844225,-500.0,0.00011697,2]
[402024450,1768483844234,-500.0,0.00011697,2]
[402024451,1768483844243,-206.71052175,0.00011697,2]
[402024452,1768483844252,-48586.50258776,0.00011699,2]
[402024454,1768483844339,-283.48739848,0.00011699,2]
[402024456,1768483844350,-350.0842972,0.00011699,2]
[402024458,1768483844631,-8121.94097125,0.00011699,2]
[402024471,1768483846342,-30805.50142645,0.00011699,2]
[402024484,1768484183520,256.66719903,0.00025626,120]
[402024485,1768484188234,342.22293204,0.00025626,120]
[402024486,1768484193766,256.66719903,0.00025626,120]
[402024488,1768484573556,983.0,0.00027397,120]
[402024544,1768485023168,5549.3242105,0.000273,120]
[402024548,1768485032482,-5000.0,0.00010682,10]
[402024549,1768485032495,-215.43651655,0.0001079,2]
[402024550,1768485032504,-2856.70086566,0.00011035,2]
[402024578,1768485038676,-143.29913434,0.00011035,2]
[402024579,1768485038686,-164.27381821,0.00011217,2]
[402024580,1768485038695,-177.35672039,0.00011217,2]
[402024581,1768485038705,-467.41228019,0.00011217,2]
[402024582,1768485038715,-4497.28079553,0.00011218,2]
[402024603,1768485040846,-415.86492935,0.00011218,2]
[402024610,1768485040904,-2387.33476658,0.00011218,2]
[402024811,1768485045246,-542.41,0.00011218,2]
[402024813,1768485045257,-2157.10950854,0.00011218,2]
[402024815,1768485045266,-2390.06,0.00011218,2]
[402024817,1768485045275,-165.23732692,0.00011592,2]
[402024819,1768485045285,-445.202766,0.00011598,2]
[402024821,1768485045293,-79099.86032623,0.00011599,2]
[402024823,1768485045304,-7508.04858177,0.00011599,2]
[402024825,1768485045314,-2206.11478538,0.00011599,2]
[402024827,1768485045325,-16064.94391865,0.00011599,2]
[402024843,1768485045460,-518.3,0.00011599,2]
[402024954,1768485046633,-13531.16937591,0.00011599,2]
[402024961,1768485046689,-1769.00514927,0.00011599,2]
[402027078,1768485681899,160.6255054,0.00023057,120]
[402027080,1768485747385,1562.07429128,0.00024109,120]
[402027084,1768486122282,178.47,6.42e-05,2]
[402027085,1768486122686,356.94,6.726e-05,2]
[402027086,1768486123093,535.41,7.032e-05,2]
[402027087,1768486123502,713.88,7.337e-05,2]
[402027088,1768486123899,892.35,7.643e-05,2]
[402027089,1768486124301,1070.82,7.949e-05,2]
[402027090,1768486124851,1249.29,8.255e-05,2]
[402027091,1768486125301,1427.76,8.56e-05,2]
[402027092,1768486125885,1606.23,8.866e-05,2]
[402027093,1768486126092,1784.7,9.172e-05,2]
[402027094,1768486150117,1000.239,0.00027397,120]
[402027095,1768486199743,184.16,6.715e-05,2]
[402027096,1768486199766,69.88,6.715e-05,2]
[402027097,1768486200113,381.06,7.021e-05,2]
[402027098,1768486200554,508.08,7.326e-05,2]
[402027099,1768486200948,635.09,7.631e-05,2]
[402027100,1768486201418,762.11,7.936e-05,2]
[402027101,1768486201794,889.13,8.241e-05,2]
[402027102,1768486202296,1016.15,8.547e-05,2]
[402027103,1768486203179,1143.17,8.852e-05,2]
[402027104,1768486204113,1270.19,9.157e-05,2]
[402027116,1768486231667,-300.23,0.00010442,10]
[402027133,1768486237780,-3379.7,0.00010442,10]
[402027159,1768486242940,-1320.07,0.00010442,10]
[402027160,1768486242950,-5000.0,0.00010547,10]
[402027161,1768486242963,-570.0,0.00010708,2]
[402027162,1768486242973,-211.12778622,0.00010708,2]
[402027163,1768486242983,-3000.0,0.00011035,2]
[402027164,1768486242993,-250.0,0.00011432,2]
[402027165,1768486243002,-1929.5960544,0.00011582,2]
[402027166,1768486243012,-250.0,0.00011592,2]
[402027167,1768486243022,-250.0,0.00011592,2]
[402027168,1768486243031,-445.202766,0.00011592,2]
[402027169,1768486243040,-36845.22122871,0.00011599,2]
[402027170,1768486243051,-2054.92963174,0.00011599,2]
[402027191,1768486245747,-919.30607628,0.00011599,2]
[402027192,1768486245757,-199.00618111,0.00011599,2]
[402027193,1768486245767,-166.0,0.00011599,2]
[402027194,1768486245776,-459.86010786,0.00011599,2]
[402027195,1768486245786,-151.0,0.00011599,2]
[402027196,1768486245797,-151.79077404,0.00011599,2]
[402027197,1768486245807,-276.16301273,0.0001214,2]
[402027198,1768486245817,-517.71093339,0.000123,2]
[402027199,1768486245826,-1300.0,0.000123,2]
[402027200,1768486245835,-155.0,0.00012328,2]
[402027201,1768486245845,-244.71852489,0.00012329,2]
[402027221,1768486276475,176.61,7.075e-05,2]
[402027222,1768486276886,235.48,7.382e-05,2]
[402027223,1768486277286,294.36,7.69e-05,2]
[402027224,1768486278042,353.23,7.997e-05,2]
[402027225,1768486285603,412.1,8.305e-05,2]
[402027226,1768486286035,470.97,8.613e-05,2]
[402027227,1768486286465,529.84,8.92e-05,2]
[402027228,1768486286876,588.71,9.228e-05,2]
[402027229,1768486298162,2583.99413959,0.0002739,120]
[402027230,1768486357892,159.27,8.944e-05,2]
[402027231,1768486358110,104.58,9.263e-05,2]
[402027232,1768486358133,74.6,9.263e-05,2]
[402027244,1768486832102,162.0,0.00024579,120]
[402027245,1768487018866,155.0,5.98e-05,2]
[402027315,1768487431945,-5000.0,0.00010284,2]
[402027317,1768487431954,-566.0,0.00010388,2]
[402027319,1768487431965,-283.39998754,0.0001044,2]
[402027321,1768487431974,-1200.0,0.00010757,2]
[402027323,1768487431984,-300.0,0.00010758,2]
[402027325,1768487431993,-300.0,0.00010758,2]
[402027327,1768487432001,-300.0,0.00010759,2]
[402027329,1768487432011,-300.0,0.00010759,2]
[402027331,1768487432020,-3000.0,0.0001076,2]
[402027333,1768487432029,-50000.0,0.00011238,2]
[402027335,1768487432040,-184.64713401,0.00011241,2]
[402027338,1768487432049,-226.256308,0.00011244,2]
[402027340,1768487432059,-226.256308,0.00011244,2]
[402027342,1768487432069,-226.256308,0.00011244,2]
[402027344,1768487432078,-226.256308,0.00011244,2]
[402027346,1768487432089,-151.0,0.00011244,2]
[402027348,1768487432098,-30000.0,0.00011244,2]
[402027350,1768487432108,-1957.856,0.00011785,2]
[402027352,1768487432117,-2150.738,0.00011785,2]
[402027354,1768487432126,-213.82671835,0.00011792,2]
[402027400,1768487438174,-30000.0,0.00011369,2]
[402027401,1768487438183,-12.42958965,0.00011792,2]
[402027402,1768487438193,-226.256308,0.00011792,2]
[402027403,1768487438202,-226.256308,0.00011792,2]
[402027404,1768487438212,-226.256308,0.00011792,2]